bitfinex/quotes_BTCUSD_20250205
["timestamp","ask_amount","ask_price","bid_price","bid_amount"]
[1738796848106,0.00834799,96488.0,96480.0,0.02228544]
[1738796848319,0.00834799,96488.0,96475.0,0.155479]
[1738796848520,0.00834799,96488.0,96476.0,0.155478]
[1738796848729,0.155465,96485.0,96470.0,0.24576042]
[1738796848985,0.00834598,96484.0,96471.0,0.155487]
[1738796849221,0.00834598,96484.0,96472.0,0.01939304]
[1738796849626,0.00834598,96484.0,96474.0,0.155481]
[1738796850152,0.155461,96487.0,96474.0,0.155481]
[1738796850370,0.155461,96487.0,96472.0,0.17487804]
[1738796850371,0.00834548,96483.0,96472.0,0.17487804]
[1738796850670,0.0125083,96482.0,96475.0,0.15548]
[1738796850874,0.0125083,96482.0,96476.0,0.03824101]
[1738796851008,0.0001067,96488.0,96476.0,0.03824101]
[1738796851206,0.16797349,96487.0,96476.0,0.03824101]
[1738796852342,0.01251249,96487.0,96476.0,0.03824101]
[1738796852559,0.01251249,96487.0,96482.0,0.155468]
[1738796852812,0.0001067,96488.0,96482.0,0.155468]
[1738796852982,0.0001067,96488.0,96474.0,0.207308]
[1738796853167,0.01251249,96487.0,96480.0,0.155471]
[1738796853705,0.01251249,96487.0,96479.0,0.155474]
[1738796853863,0.0001067,96488.0,96480.0,0.0155474]
[1738796854072,0.01250344,96486.0,96480.0,0.0155474]
[1738796854272,0.01250428,96487.0,96481.0,0.207294]
[1738796854624,0.0001067,96488.0,96484.0,0.155464]
[1738796854809,0.0001067,96488.0,96480.0,0.2228434]
[1738796854954,0.0001067,96488.0,96481.0,0.02228434]
[1738796855161,0.0001067,96488.0,96487.0,0.155461]
[1738796857493,0.0001067,96488.0,96487.0,0.15649729]
[1738796858315,0.0001067,96488.0,96487.0,0.16925116]
[1738796858454,0.0001067,96488.0,96487.0,0.27175481]
[1738796858653,0.0001067,96488.0,96487.0,0.38637367]
[1738796858918,0.30689135,96519.0,96509.0,0.155425]
[1738796859139,0.00011627,96511.0,96510.0,0.155424]
[1738796859277,0.00011627,96511.0,96488.0,0.00103614]
[1738796859278,0.00011627,96511.0,96507.0,0.207237]
[1738796859491,0.00011627,96511.0,96509.0,0.155425]
[1738796859716,0.00011627,96511.0,96507.0,0.207237]
[1738796859886,0.00011627,96511.0,96507.0,0.0207237]
[1738796860287,0.00011627,96511.0,96498.0,0.207258]
[1738796860288,0.00011627,96511.0,96510.0,0.155424]
[1738796860623,0.00011627,96511.0,96508.0,0.207235]
[1738796860820,0.00011627,96511.0,96508.0,0.362661]
[1738796861023,0.00011627,96511.0,96510.0,0.155424]
[1738796861647,0.00011627,96511.0,96510.0,0.15646012]
[1738796861843,0.00011627,96511.0,96510.0,0.23324211]
[1738796862126,0.00011627,96511.0,96510.0,0.33574576]
[1738796863755,0.00011627,96511.0,96510.0,0.3679877]
[1738796865024,0.00011627,96511.0,96510.0,0.3909877]
[1738796865370,0.00011627,96511.0,96510.0,0.5409877]
[1738796865576,0.00011627,96511.0,96510.0,0.6219877]
[1738796867302,0.00011627,96511.0,96510.0,0.5989877]
[1738796867723,0.00011627,96511.0,96510.0,0.6219877]
[1738796868798,0.08303019,96544.0,96543.0,0.155371]
[1738796868799,0.07605714,96544.0,96543.0,0.155371]
[1738796869162,0.07605714,96544.0,96511.0,0.033]
[1738796869163,0.207161,96543.0,96518.0,0.207215]
[1738796869356,0.08873914,96544.0,96533.0,0.155386]
[1738796869357,0.155372,96542.0,96533.0,0.155386]
[1738796869555,0.155372,96542.0,96534.0,0.1709236]
[1738796869852,0.00014015,96544.0,96543.0,0.155371]
[1738796873031,0.00014015,96544.0,96541.0,0.207164]
[1738796873459,0.00014015,96544.0,96542.0,0.155372]
[1738796873672,0.00014015,96544.0,96543.0,0.0569709]
[1738796873867,0.00014015,96544.0,96543.0,0.2123419]
[1738796877865,0.00014015,96544.0,96534.0,0.11804225]
[1738796878015,0.00014015,96544.0,96524.0,0.0786]
[1738796878213,0.00014015,96544.0,96534.0,0.155384]
[1738796878394,0.01260003,96543.0,96534.0,0.155384]
[1738796878595,0.01260003,96543.0,96535.0,0.155383]
[1738796878936,0.01260003,96543.0,96536.0,0.0362567]
[1738796879239,0.01260003,96543.0,96531.0,0.15539]
[1738796879442,0.01260003,96543.0,96517.0,0.285815]
[1738796879443,0.01260003,96543.0,96533.0,0.155386]
[1738796880517,0.01260003,96543.0,96530.0,0.155391]
[1738796880518,0.155372,96542.0,96530.0,0.155391]
[1738796880698,0.01260003,96543.0,96531.0,0.2227251]
[1738796880997,0.01259676,96541.0,96534.0,0.155384]
[1738796881155,0.01259759,96542.0,96534.0,0.155384]
[1738796881354,0.01259592,96540.0,96534.0,0.155384]
[1738796881557,0.01259425,96541.0,96531.0,0.0155391]
[1738796881763,0.00014015,96544.0,96528.0,0.155394]
[1738796881764,0.01259258,96539.0,96528.0,0.155394]
[1738796881979,0.16797059,96540.0,96528.0,0.155394]
[1738796882180,0.01259192,96538.0,96516.0,0.15]
[1738796882405,0.01259275,96539.0,96516.0,0.10250365]
[1738796882700,0.01259275,96539.0,96509.0,0.0829]
[1738796882701,0.155388,96533.0,96522.0,0.155404]
[1738796882902,0.15539,96532.0,96518.0,0.207215]
[1738796883130,0.16797689,96532.0,96521.0,0.155406]
[1738796883695,0.01258689,96532.0,96519.0,0.207213]
[1738796884034,0.51406235,96539.0,96520.0,0.04487494]
[1738796884177,0.01259192,96538.0,96520.0,0.04487494]
[1738796884376,0.01259192,96538.0,96534.0,0.155385]
[1738796884601,0.01259192,96538.0,96534.0,0.0155385]
[1738796884826,0.01259192,96538.0,96521.0,0.207208]
[1738796884827,0.01259192,96538.0,96528.0,0.155394]
[1738796885179,0.16797092,96538.0,96528.0,0.155394]
[1738796885621,0.01259192,96538.0,96525.0,0.207199]
[1738796885826,0.01269862,96538.0,96531.0,0.15539]
[1738796886204,0.01269862,96538.0,96527.0,0.207194]
[1738796886404,0.01269862,96538.0,96529.0,0.155392]
[1738796886978,0.01269862,96538.0,96530.0,0.155391]
[1738796887982,0.01269862,96538.0,96528.0,0.0207194]
[1738796888195,0.01269862,96538.0,96529.0,0.155393]
[1738796889557,0.01269862,96538.0,96528.0,0.0207194]
[1738796889727,0.01269862,96538.0,96529.0,0.02279164]
[1738796889934,0.01269862,96538.0,96529.0,0.17818464]
[1738796890334,0.01269862,96538.0,96531.0,0.155389]
[1738796891217,0.16807762,96538.0,96529.0,0.02279164]
[1738796891397,0.01269862,96538.0,96529.0,0.02279164]
[1738796891596,0.01269862,96538.0,96530.0,0.155391]
[1738796891795,0.01269862,96538.0,96532.0,0.155388]
[1738796892002,0.01269862,96538.0,96530.0,0.0250708]
[1738796892197,0.0001067,96538.0,96531.0,0.15539]
[1738796892397,0.01258221,96537.0,96533.0,0.155386]
[1738796892725,0.0001067,96538.0,96531.0,0.155389]
[1738796893173,0.01258221,96537.0,96531.0,0.155389]
[1738796893378,0.01258221,96537.0,96520.0,0.01227892]
[1738796893586,0.01258221,96537.0,96536.0,0.155382]
[1738796894077,0.0001067,96538.0,96537.0,0.15538]
[1738796894264,0.0001067,96538.0,96537.0,0.2123536]
[1738796895041,0.155394,96529.0,96518.0,0.15541]
[1738796895220,0.01257467,96528.0,96511.0,0.08303019]
[1738796895622,0.559395,96536.0,96513.0,0.155419]
[1738796895793,0.155393,96529.0,96510.0,0.00022407]
[1738796895994,0.207193,96528.0,96510.0,0.00022407]
[1738796896201,0.207193,96528.0,96511.0,0.03628891]
[1738796896202,0.207216,96518.0,96511.0,0.03628891]
[1738796896354,0.01257653,96528.0,96511.0,0.03628891]
[1738796896559,0.155421,96513.0,96510.0,0.00022407]
[1738796896770,0.155418,96514.0,96510.0,0.00022407]
[1738796896970,0.01256312,96512.0,96510.0,0.00022407]
[1738796897177,0.155421,96512.0,96510.0,0.00022407]
[1738796897377,0.01256228,96511.0,96510.0,0.00022407]
[1738796897640,0.155422,96511.0,96510.0,0.00022407]
[1738796897840,0.282622,96511.0,96510.0,0.00022407]
[1738796898046,0.54768793,96511.0,96510.0,0.00022407]
[1738796898771,0.86681574,96511.0,96510.0,0.00022407]
[1738796899031,0.88610506,96511.0,96510.0,0.00022407]
[1738796902545,0.69386495,96511.0,96510.0,0.00022407]
[1738796902751,0.49416495,96511.0,96510.0,0.00022407]
[1738796902959,0.49416495,96511.0,96510.0,0.01578968]
[1738796903191,0.49416495,96511.0,96510.0,0.00022407]
[1738796903546,0.47487563,96511.0,96510.0,0.00022407]
[1738796904942,0.62487563,96511.0,96510.0,0.00022407]
[1738796905148,0.70107563,96511.0,96510.0,0.00022407]
[1738796905352,0.80357928,96511.0,96510.0,0.00022407]
[1738796905989,0.82279806,96511.0,96510.0,0.00022407]
[1738796908175,0.80357928,96511.0,96510.0,0.00022407]
[1738796910566,0.64409164,96511.0,96510.0,0.00022407]
[1738796911869,0.33720029,96511.0,96510.0,0.00022407]
[1738796912080,0.03177829,96511.0,96510.0,0.00022407]
[1738796912290,0.03177829,96511.0,96510.0,0.02097078]
[1738796912500,0.155414,96517.0,96510.0,0.02097078]
[1738796912713,0.01250623,96511.0,96510.0,0.17639478]
[1738796912887,0.15,96518.0,96510.0,0.17639478]
[1738796913049,0.15,96518.0,96510.0,0.22820178]
[1738796913252,0.01251126,96517.0,96512.0,0.155419]
[1738796913461,0.01251126,96517.0,96512.0,0.21450568]
[1738796913668,0.01251126,96517.0,96512.0,0.05908668]
[1738796914074,0.15542,96513.0,96510.0,0.00022407]
[1738796914280,0.01250707,96512.0,96510.0,0.00022407]
[1738796914491,0.155422,96511.0,96510.0,0.00022407]
[1738796915014,0.16792823,96511.0,96510.0,0.00022407]
[1738796918212,0.84942323,96511.0,96510.0,0.00022407]
[1738796918435,0.95192688,96511.0,96510.0,0.00022407]
[1738796920303,0.84942323,96511.0,96510.0,0.00022407]
[1738796931915,0.87242323,96511.0,96510.0,0.00022407]
[1738796932335,0.93474323,96511.0,96510.0,0.00022407]
[1738796934311,0.78964323,96511.0,96510.0,0.00022407]
[1738796938906,0.31939758,96511.0,96510.0,0.00022407]
[1738796939118,0.30689135,96530.0,96511.0,0.155422]
[1738796939320,0.14470411,96540.0,96522.0,0.155404]
[1738796939321,0.207176,96536.0,96522.0,0.155404]
[1738796939490,0.14470411,96540.0,96512.0,0.15250777]
[1738796939491,0.207174,96537.0,96517.0,0.155411]
[1738796939639,0.15538,96537.0,96516.0,0.155413]
[1738796939912,0.155393,96530.0,96516.0,0.155414]
[1738796940106,0.155391,96531.0,96517.0,0.19880298]
[1738796940359,0.155393,96529.0,96517.0,0.04339098]
[1738796940923,0.155391,96531.0,96517.0,0.19880298]
[1738796941227,0.155385,96534.0,96517.0,0.04339098]
[1738796941396,0.155389,96532.0,96519.0,0.155409]
[1738796941632,0.01218285,96538.0,96518.0,0.050872]
[1738796941836,0.15,96536.0,96513.0,0.155419]
[1738796942078,0.155399,96526.0,96512.0,0.15542]
[1738796942941,0.15,96536.0,96512.0,0.15542]
[1738796943147,0.155399,96526.0,96512.0,0.15542]
[1738796944237,0.15,96536.0,96517.0,0.155412]
[1738796944450,0.01218285,96538.0,96518.0,0.0362642]
[1738796944659,0.0001067,96538.0,96534.0,0.155384]
[1738796944862,0.0001067,96538.0,96529.0,0.155392]
[1738796944993,0.0001067,96538.0,96530.0,0.0362587]
[1738796945414,0.00836461,96537.0,96530.0,0.0362587]
[1738796945830,0.00836461,96537.0,96520.0,0.10250365]
[1738796945831,0.00836461,96537.0,96525.0,0.2072]
[1738796946029,0.0001067,96538.0,96536.0,0.155382]
[1738796946332,0.0001067,96538.0,96535.0,0.155383]
[1738796946683,0.0001067,96538.0,96537.0,0.15538]
[1738796946834,0.0001067,96538.0,96537.0,0.29619384]
[1738796947026,0.0001067,96538.0,96537.0,0.29515808]
[1738796947939,0.0001067,96538.0,96537.0,0.34185808]
[1738796949635,0.0001067,96538.0,96537.0,0.44436173]
[1738796950039,0.0001068,96556.0,96543.0,0.305371]
[1738796950159,0.0001068,96556.0,96543.0,0.61223297]
[1738796950360,0.00024685,96544.0,96543.0,0.61223297]
[1738796951852,0.0001068,96556.0,96555.0,0.456651]
[1738796951993,0.0001068,96556.0,96555.0,0.57982807]
[1738796952371,0.0001068,96556.0,96555.0,0.63690615]
[1738796952798,0.0001068,96568.0,96555.0,0.63690615]
[1738796952799,0.0001068,96568.0,96564.0,0.155337]
[1738796953015,0.0001068,96568.0,96567.0,0.338332]
[1738796953217,0.0001067,96580.0,96579.0,0.413113]
[1738796953419,0.0010036,96610.0,96580.0,0.173]
[1738796953624,0.0010036,96610.0,96579.0,1.35898088]
[1738796953625,7e-05,96614.0,96607.0,0.404968]
[1738796953774,7e-05,96614.0,96607.0,0.43564142]
[1738796953972,0.00057406,96608.0,96607.0,0.5725717]
[1738796954174,7e-05,96614.0,96613.0,0.338258]
[1738796954521,0.00021012,96614.0,96613.0,0.33930757]
[1738796954656,0.00021012,96614.0,96613.0,0.36858753]
[1738796955008,0.10732052,96620.0,96619.0,0.338248]
[1738796955009,0.10246953,96620.0,96619.0,0.338248]
[1738796955216,0.10246953,96620.0,96619.0,0.46142507]
[1738796955429,0.00985221,96620.0,96619.0,0.48860997]
[1738796955989,0.00985221,96620.0,96619.0,0.51684036]
[1738796956508,0.00985221,96620.0,96619.0,0.48860997]
[1738796957841,0.00976047,96620.0,96619.0,0.49860997]
[1738796958053,0.00976047,96620.0,96619.0,0.53684036]
[1738796958391,0.00976047,96620.0,96619.0,0.55161116]
[1738796958809,3.1e-07,96620.0,96619.0,0.56638196]
[1738796958983,0.15,96677.0,96625.0,0.206985]
[1738796959192,0.15,96677.0,96626.0,0.15958173]
[1738796959193,0.00014001,96650.0,96626.0,0.15958173]
[1738796959395,0.00014001,96650.0,96633.0,0.155225]
[1738796959605,0.00014001,96650.0,96634.0,0.155224]
[1738796959826,0.00724199,96649.0,96635.0,0.155223]
[1738796959947,0.00724199,96649.0,96637.0,0.155219]
[1738796960177,0.00724199,96649.0,96638.0,0.0362184]
[1738796961456,0.00724199,96649.0,96626.0,0.10250365]
[1738796961770,0.16244199,96649.0,96626.0,0.10250365]
[1738796961972,0.16244299,96649.0,96632.0,0.155227]
[1738796962138,0.00724199,96649.0,96629.0,0.206976]
[1738796962341,0.00724199,96649.0,96614.0,1.02561891]
[1738796962342,0.00724199,96649.0,96622.0,0.206992]
[1738796962543,0.155204,96647.0,96631.0,0.155229]
[1738796962793,0.00014001,96650.0,96635.0,0.155222]
[1738796962992,0.00014001,96650.0,96644.0,0.155208]
[1738796962993,0.00721215,96646.0,96644.0,0.155208]
[1738796963194,0.00014001,96650.0,96644.0,0.155208]
[1738796963402,0.00014001,96650.0,96645.0,0.0155208]
[1738796963607,0.00014001,96650.0,96649.0,0.1552]
[1738796963809,0.00014001,96650.0,96630.0,0.02067342]
[1738796964029,0.00014001,96650.0,96646.0,0.155205]
[1738796964200,0.00014001,96650.0,96641.0,0.155212]
[1738796964430,0.00014001,96650.0,96647.0,0.206938]
[1738796964623,0.00718541,96649.0,96648.0,0.32864213]
[1738796964804,0.00014001,96650.0,96648.0,0.32760764]
[1738796965040,0.00014001,96650.0,96649.0,0.00103449]
[1738796965204,0.00014001,96650.0,96649.0,0.10353814]
[1738796965572,0.00014001,96650.0,96649.0,0.10250365]
[1738796965780,0.00014001,96650.0,96649.0,0.12686364]
[1738796965978,0.00014001,96650.0,96649.0,0.28206364]
[1738796967841,0.00024671,96650.0,96649.0,0.28206364]
[1738796968835,0.15,96678.0,96650.0,0.206932]
[1738796969178,0.00100274,96680.0,96669.0,0.206891]
[1738796969179,0.00727806,96677.0,96669.0,0.206891]
[1738796969315,0.00727806,96677.0,96673.0,0.15516]
[1738796969519,0.00013999,96680.0,96673.0,0.15516]
[1738796969781,0.00013999,96680.0,96670.0,0.2275781]
[1738796969782,0.00013999,96680.0,96670.0,0.0206891]
[1738796969936,0.00013999,96680.0,96670.0,0.1758551]
[1738796970148,0.00013999,96680.0,96671.0,0.04921389]
[1738796970370,0.00728641,96679.0,96669.0,0.155167]
[1738796970558,0.00728641,96679.0,96660.0,0.00103437]
[1738796970559,0.15516,96675.0,96660.0,0.155183]
[1738796970757,0.15516,96675.0,96661.0,0.02382132]
[1738796970957,0.16244474,96674.0,96661.0,0.02382132]
[1738796971159,0.00728474,96674.0,96661.0,0.02382132]
[1738796971385,0.00728474,96674.0,96662.0,0.155179]
[1738796971584,0.206874,96677.0,96662.0,0.155179]
[1738796971927,0.155156,96677.0,96662.0,0.155179]
[1738796972136,0.00728725,96676.0,96659.0,0.08303019]
[1738796972350,0.00728725,96676.0,96672.0,0.155163]
[1738796972540,0.00728725,96676.0,96673.0,0.0155163]
[1738796972786,0.00728725,96676.0,96669.0,0.155167]
[1738796972985,0.00013999,96680.0,96669.0,0.155168]
[1738796973164,0.00013999,96680.0,96670.0,0.206889]
[1738796973365,0.00729602,96679.0,96678.0,0.155154]
[1738796973578,0.00729602,96679.0,96678.0,0.18091976]
[1738796973716,0.00013999,96680.0,96678.0,0.18091976]
[1738796973926,0.00013999,96680.0,96679.0,0.10353788]
[1738796974151,0.00013999,96680.0,96679.0,0.00103423]
[1738796974352,0.00013999,96680.0,96679.0,0.10250365]
[1738796974534,0.00013999,96680.0,96679.0,0.17100087]
[1738796974978,0.00013999,96680.0,96679.0,0.19002245]
[1738796975716,0.00013999,96680.0,96679.0,0.0875188]
[1738796976452,0.00013999,96680.0,96679.0,0.19105664]
[1738796976650,0.00013999,96680.0,96679.0,0.19002245]
[1738796977286,0.00013999,96680.0,96679.0,0.0875188]
[1738796977854,0.00013999,96680.0,96659.0,0.0483]
[1738796978056,0.00013999,96680.0,96652.0,0.02067342]
[1738796978057,0.15529099,96680.0,96666.0,0.155172]
[1738796978415,0.00733774,96679.0,96659.0,0.08303019]
[1738796978622,0.00733774,96679.0,96670.0,0.155165]
[1738796978825,0.00013999,96680.0,96670.0,0.155165]
[1738796979064,0.0073319,96678.0,96668.0,0.15517]
[1738796979235,0.00733273,96679.0,96668.0,0.15517]
[1738796979395,0.15516,96675.0,96669.0,0.0318376]
[1738796979601,0.00013999,96680.0,96656.0,0.08303019]
[1738796979602,0.00733774,96678.0,96656.0,0.08303019]
[1738796979801,0.21569373,96680.0,96656.0,0.08303019]
[1738796979802,0.155173,96666.0,96656.0,0.08303019]
[1738796980000,0.155174,96666.0,96662.0,0.00022407]
[1738796980217,0.00732479,96665.0,96662.0,0.00022407]
[1738796980834,0.01236455,96678.0,96662.0,0.00022407]
[1738796981040,0.00732396,96664.0,96662.0,0.00022407]
[1738796981213,0.155169,96669.0,96662.0,0.00022407]
[1738796981450,0.155157,96676.0,96662.0,0.00022407]
[1738796981653,0.413756,96675.0,96662.0,0.0085495]
[1738796981853,0.00733315,96675.0,96662.0,0.0085495]
[1738796982059,0.00733315,96675.0,96662.0,0.00022407]
[1738796982395,0.155169,96669.0,96662.0,0.00022407]
[1738796982761,0.0073273,96668.0,96662.0,0.00022407]
[1738796983155,0.01245253,96679.0,96662.0,0.00022407]
[1738796983362,0.00732646,96667.0,96662.0,0.00022407]
[1738796983561,0.155166,96671.0,96663.0,0.02901723]
[1738796983763,0.00732563,96666.0,96663.0,0.02901723]
[1738796984009,0.155167,96670.0,96663.0,0.02901723]
[1738796984205,0.00732479,96665.0,96663.0,0.02901723]
[1738796984407,0.155174,96666.0,96662.0,0.00022407]
[1738796984624,0.00732396,96664.0,96662.0,0.00022407]
[1738796984769,0.155172,96667.0,96662.0,0.00022407]
[1738796985140,0.155157,96676.0,96665.0,0.155174]
[1738796985377,0.0073273,96675.0,96666.0,0.17071181]
[1738796985514,0.155158,96676.0,96666.0,0.17071181]
[1738796985716,0.0073273,96675.0,96666.0,0.17071181]
[1738796985919,0.1624873,96675.0,96666.0,0.01553981]
[1738796986116,0.1624873,96675.0,96667.0,0.03778449]
[1738796986322,0.155162,96673.0,96668.0,0.03201105]
[1738796986768,0.16249147,96672.0,96668.0,0.03201105]
[1738796986965,0.00732647,96672.0,96668.0,0.03201105]
[1738796987164,0.155159,96675.0,96668.0,0.03201105]
[1738796987307,0.0073273,96671.0,96668.0,0.03201105]
[1738796987503,0.155164,96672.0,96669.0,0.03201105]
[1738796987867,0.0073273,96671.0,96670.0,0.03201105]
[1738796988100,0.0073273,96671.0,96663.0,0.03201105]
[1738796988275,0.155175,96665.0,96664.0,0.03205998]
[1738796988690,0.26500806,96665.0,96664.0,0.03205998]
[1738796989118,0.47034827,96665.0,96664.0,0.03205998]
[1738796989269,0.236678,96663.0,96662.0,0.00022407]
[1738796989482,0.33918165,96663.0,96662.0,0.00022407]
[1738796989715,0.34650939,96663.0,96662.0,0.00022407]
[1738796990812,0.50877769,96663.0,96662.0,0.00022407]
[1738796991218,0.63428134,96663.0,96662.0,0.00022407]
[1738796991421,0.64428134,96663.0,96662.0,0.00022407]
[1738796991847,0.54177769,96663.0,96662.0,0.00022407]
[1738796993234,0.50877769,96663.0,96662.0,0.00022407]
[1738796993930,0.81566904,96663.0,96662.0,0.00022407]
[1738796994130,0.83866904,96663.0,96662.0,0.00022407]
[1738796995122,0.84754904,96663.0,96662.0,0.00022407]
[1738796998769,0.82454904,96663.0,96662.0,0.00022407]
[1738797001460,0.42899104,96663.0,96662.0,0.00022407]
[1738797001607,0.31421909,96663.0,96662.0,0.00022407]
[1738797001834,0.31421909,96663.0,96662.0,0.19973548]
[1738797001835,0.00732774,96663.0,96662.0,0.19973548]
[1738797002243,0.155157,96676.0,96662.0,0.04455648]
[1738797002476,0.155158,96676.0,96663.0,0.206904]
[1738797002694,0.00725795,96675.0,96662.0,0.00022407]
[1738797002900,0.206901,96665.0,96662.0,0.00022407]
[1738797003095,0.155178,96663.0,96662.0,0.00022407]
[1738797003298,0.16242894,96664.0,96662.0,0.00022407]
[1738797003507,0.00725127,96663.0,96662.0,0.00022407]
[1738797003913,0.155168,96670.0,96664.0,0.155176]
[1738797004499,0.155168,96669.0,96663.0,0.155178]
[1738797005296,0.155172,96667.0,96662.0,0.00022407]
[1738797005528,0.155172,96667.0,96662.0,0.05714778]
[1738797005878,0.11493971,96679.0,96663.0,0.155177]
[1738797006078,0.11493971,96679.0,96662.0,0.05714778]
[1738797006079,0.155171,96668.0,96662.0,0.05714778]
[1738797006522,0.11493971,96679.0,96662.0,0.05714778]
[1738797006730,0.155171,96668.0,96662.0,0.05714778]
[1738797006959,0.155173,96666.0,96662.0,0.00022407]
[1738797007164,0.206872,96678.0,96662.0,0.00022407]
[1738797007696,0.15517,96668.0,96662.0,0.15540307]
[1738797008104,0.155173,96666.0,96662.0,0.00022407]
[1738797008714,0.15,96678.0,96662.0,0.00022407]
[1738797008943,0.155178,96663.0,96662.0,0.00022407]
[1738797009143,0.40768165,96663.0,96662.0,0.00022407]
[1738797011572,0.41934919,96663.0,96662.0,0.00022407]
[1738797011856,0.42663623,96663.0,96662.0,0.00022407]
[1738797017554,0.73352758,96663.0,96662.0,0.00022407]
[1738797017878,0.75283052,96663.0,96662.0,0.00022407]
[1738797018703,0.73352758,96663.0,96662.0,0.00022407]
[1738797025934,0.75283385,96663.0,96662.0,0.00022407]
[1738797028417,0.81502385,96663.0,96662.0,0.00022407]
[1738797028622,0.75283385,96663.0,96662.0,0.00022407]
[1738797029989,0.5003302,96663.0,96662.0,0.00022407]
[1738797030186,0.18177131,96663.0,96662.0,0.00022407]
[1738797031000,0.02659331,96663.0,96662.0,0.00022407]
[1738797031209,0.01930627,96663.0,96662.0,0.00022407]
[1738797031371,0.02657199,96663.0,96662.0,0.00022407]
[1738797031568,0.18174999,96663.0,96662.0,0.00022407]
[1738797032206,0.18174999,96663.0,96662.0,0.02842548]
[1738797032406,0.18174999,96663.0,96662.0,0.00022407]
[1738797032617,0.16244372,96663.0,96662.0,0.00022407]
[1738797033850,0.26494737,96663.0,96662.0,0.00022407]
[1738797034049,0.41494737,96663.0,96662.0,0.00022407]
[1738797035888,0.31244372,96663.0,96662.0,0.00022407]
[1738797042085,0.33177932,96663.0,96662.0,0.00022407]
[1738797043442,0.31244372,96663.0,96662.0,0.00022407]
[1738797048447,0.16244372,96663.0,96662.0,0.00022407]
[1738797054347,0.00726572,96663.0,96662.0,0.00022407]
[1738797054578,0.00726572,96663.0,96662.0,0.16793548]
[1738797054785,0.0001067,96679.0,96663.0,0.0475]
[1738797054986,0.0001067,96679.0,96678.0,0.232754]
[1738797055389,0.0001067,96679.0,96678.0,0.280254]
[1738797055590,0.0001067,96679.0,96678.0,0.35172214]
[1738797056765,0.0001067,96679.0,96678.0,0.45422579]
[1738797057212,0.0001067,96679.0,96678.0,0.48635169]
[1738797057387,0.0001067,96679.0,96678.0,0.45422579]
[1738797058551,0.0001067,96679.0,96678.0,0.63870257]
[1738797058767,0.0909178,96699.0,96698.0,0.284422]
[1738797058975,0.09096444,96699.0,96698.0,0.39718808]
[1738797059188,0.01299382,96699.0,96698.0,0.42924934]
[1738797059394,4.664e-05,96699.0,96698.0,0.39718808]
[1738797059602,4.664e-05,96699.0,96698.0,0.01026243]
[1738797059810,4.664e-05,96699.0,96690.0,0.0807]
[1738797059988,4.664e-05,96699.0,96696.0,0.155124]
[1738797060163,4.664e-05,96699.0,96691.0,0.00103411]
[1738797060363,4.664e-05,96699.0,96684.0,0.0498]
[1738797060364,0.155132,96692.0,96684.0,0.0498]
[1738797060524,0.155127,96695.0,96681.0,0.0807]
[1738797060746,4.664e-05,96699.0,96682.0,0.02279484]
[1738797060747,0.155145,96684.0,96682.0,0.02279484]
[1738797060945,0.10250365,96698.0,96673.0,0.0807]
[1738797061190,0.0129346,96683.0,96677.0,0.155155]
[1738797061411,0.01192116,96699.0,96677.0,0.155155]
[1738797061615,0.155133,96691.0,96678.0,0.0442735]
[1738797061853,4.664e-05,96699.0,96679.0,0.00103426]
[1738797062010,0.0129401,96690.0,96687.0,0.155139]
[1738797062188,0.155122,96698.0,96688.0,0.0361998]
[1738797062383,0.01294561,96697.0,96688.0,0.0361998]
[1738797063254,0.155127,96695.0,96688.0,0.0361998]
[1738797063459,0.155128,96694.0,96688.0,0.0361998]
[1738797063665,0.155128,96694.0,96678.0,0.14677715]
[1738797063666,0.01294325,96694.0,96678.0,0.0442735]
[1738797063865,0.206847,96690.0,96667.0,0.206894]
[1738797064212,0.155162,96673.0,96664.0,0.0791]
[1738797064458,0.14387233,96690.0,96662.0,0.15540307]
[1738797064459,0.15517,96668.0,96662.0,0.00022407]
[1738797064696,0.155168,96670.0,96667.0,0.00832543]
[1738797064903,0.01295214,96667.0,96662.0,0.00022407]
[1738797065180,0.155166,96671.0,96662.0,0.00022407]
[1738797065423,0.01295136,96666.0,96662.0,0.00022407]
[1738797065654,0.155165,96672.0,96662.0,0.00022407]
[1738797065906,0.0131227,96665.0,96663.0,0.04453503]
[1738797066143,4.662e-05,96666.0,96663.0,0.04453503]
[1738797066377,4.662e-05,96666.0,96663.0,0.19971203]
[1738797066620,0.0131227,96665.0,96664.0,0.155175]
[1738797066888,4.662e-05,96666.0,96664.0,0.3074066]
[1738797067336,0.00100274,96700.0,96665.0,0.40483781]
[1738797067337,0.00100274,96700.0,96698.0,0.15512]
[1738797067573,0.00100274,96700.0,96699.0,0.18033767]
[1738797068005,0.00100274,96700.0,96699.0,0.20333767]
[1738797068249,0.0148101,96717.0,96716.0,0.155093]
[1738797068483,0.0148101,96717.0,96716.0,0.25863038]
[1738797068697,0.0148101,96717.0,96716.0,0.33849665]
[1738797068977,0.00239568,96734.0,96733.0,0.155066]
[1738797069215,0.00286246,96734.0,96733.0,0.3072976]
[1738797071563,0.00286246,96734.0,96733.0,0.3830976]
[1738797071796,0.00286246,96734.0,96733.0,0.5560976]
[1738797073435,0.00286246,96734.0,96733.0,0.5330976]
[1738797073883,0.01666667,96769.0,96736.0,0.15]
[1738797073884,0.01081527,96764.0,96736.0,0.15]
[1738797074100,0.01081527,96764.0,96761.0,0.15502]
[1738797074337,0.01095529,96764.0,96761.0,0.15502]
[1738797074553,0.01095529,96764.0,96758.0,0.2067]
[1738797074776,0.01095529,96764.0,96746.0,0.02067342]
[1738797074980,0.01095529,96764.0,96747.0,0.12524449]
[1738797075194,0.01095529,96764.0,96754.0,0.15503]
[1738797075407,0.01095529,96764.0,96747.0,0.12524449]
[1738797075408,0.01148327,96763.0,96762.0,0.155019]
[1738797075629,0.206619,96797.0,96762.0,0.155019]
[1738797075630,0.154936,96814.0,96786.0,0.154981]
[1738797075848,0.154957,96801.0,96786.0,0.00103302]
[1738797076091,0.0482,96818.0,96786.0,0.154981]
[1738797076321,0.0482,96818.0,96766.0,0.02067342]
[1738797076322,0.21534498,96800.0,96766.0,0.02067342]
[1738797076541,0.2067457,96787.0,96763.0,0.11506511]
[1738797076775,0.154987,96782.0,96773.0,0.08303019]
[1738797076949,0.154983,96785.0,96773.0,0.08303019]
[1738797077153,0.01109606,96781.0,96773.0,0.08303019]
[1738797077286,0.154984,96784.0,96773.0,0.08303019]
[1738797077495,0.01109606,96780.0,96774.0,0.02380392]
[1738797077715,0.0001067,96787.0,96773.0,0.08303019]
[1738797077941,0.01109135,96779.0,96773.0,0.08303019]
[1738797078116,0.15499,96781.0,96773.0,0.08303019]
[1738797078326,0.01109057,96778.0,96773.0,0.08303019]
[1738797078527,0.154981,96786.0,96774.0,0.00830302]